bitfinex/quotes_ETHUSD_20260106
["timestamp","ask_amount","ask_price","bid_price","bid_amount"]
[1767661609997,0.91874872,3214.9,3214.0,0.002]
[1767661610188,0.91874872,3214.8,3214.0,0.002]
[1767661610693,1.10650036,3214.9,3214.1,0.98530104]
[1767661611084,4.21704013,3214.9,3214.1,0.98530104]
[1767661611399,3.11053977,3214.9,3214.1,0.98530104]
[1767661611698,3.11045973,3215.0,3214.1,0.98530104]
[1767661612877,3.1103613,3215.1,3214.1,0.98530104]
[1767661613401,3.11115234,3215.3,3214.3,0.98730104]
[1767661613402,0.001,3215.3,3214.3,0.98730104]
[1767661613599,0.001,3215.3,3214.7,0.98530104]
[1767661615901,0.001,3215.3,3214.8,0.9141294]
[1767661616067,0.001,3215.3,3214.9,1.31660948]
[1767661617599,0.001,3215.3,3215.0,0.9141294]
[1767661620310,0.001,3215.3,3215.1,0.9141294]
[1767661620502,0.002,3215.6,3215.1,0.9141294]
[1767661621876,0.002,3215.6,3214.9,0.40248008]
[1767661622190,0.002,3215.6,3214.8,0.90645526]
[1767661622724,0.96697535,3215.6,3214.6,0.815]
[1767661623012,0.002,3215.6,3214.9,0.90645526]
[1767661625208,0.002,3215.3,3214.9,0.90645526]
[1767661626599,0.002,3215.6,3215.1,0.90645526]
[1767661630009,0.002,3215.6,3215.1,1.30814704]
[1767661630205,0.002,3215.6,3214.8,0.90645526]
[1767661630406,0.96697535,3215.6,3214.8,0.90645526]
[1767661630583,0.96697535,3215.6,3214.3,0.002]
[1767661630584,0.96497535,3215.3,3214.3,0.002]
[1767661630791,0.96497535,3215.1,3214.3,0.002]
[1767661632598,0.96497535,3214.9,3214.3,0.002]
[1767661634425,0.96497535,3214.9,3214.0,0.002]
[1767661634927,0.96497535,3214.7,3213.6,0.90845526]
[1767661635129,0.96497535,3214.5,3213.6,0.002]
[1767661636002,0.96497535,3214.5,3213.6,0.90845526]
[1767661636202,4.07558876,3214.8,3213.6,0.90845526]
[1767661636432,0.815,3214.7,3213.6,0.90845526]
[1767661636625,0.815,3214.7,3213.7,0.90645526]
[1767661636931,0.815,3214.7,3213.9,0.001]
[1767661637101,3.92573835,3214.7,3213.9,0.001]
[1767661637821,4.8907137,3214.7,3213.9,0.001]
[1767661639099,4.8907137,3214.7,3213.9,0.03211482]
[1767661641838,8.00145205,3214.7,3213.9,0.001]
[1767661642036,1.76512056,3214.6,3213.9,0.001]
[1767661642711,0.96497535,3214.5,3213.9,0.001]
[1767661645335,0.96497535,3214.3,3213.6,0.002]
[1767661647041,0.96497535,3214.3,3213.6,0.90845526]
[1767661647534,4.0760757,3214.3,3213.6,0.90845526]
[1767661648046,0.96497535,3214.2,3213.6,0.002]
[1767661648618,0.96497535,3214.2,3213.3,0.002]
[1767661648813,0.96497535,3214.0,3213.9,0.002]
[1767661649014,0.96497535,3214.0,3213.3,0.90845526]
[1767661651232,0.90066948,3214.2,3213.3,0.90845526]
[1767661651433,0.001,3214.3,3213.3,0.90845526]
[1767661651640,0.001,3214.3,3213.4,0.92563175]
[1767661651942,3.11209813,3214.3,3213.5,0.92563175]
[1767661652438,0.90066948,3214.2,3213.3,0.92763175]
[1767661653046,0.90066948,3214.2,3213.3,0.002]
[1767661654532,0.90066948,3214.0,3213.3,0.002]
[1767661654947,0.90066948,3214.0,3213.0,0.92563175]
[1767661655114,0.71232512,3213.9,3213.0,0.92563175]
[1767661655842,3.1115813,3213.8,3213.0,0.92563175]
[1767661656347,0.90066948,3213.7,3212.7,0.002]
[1767661658468,3.11177495,3213.6,3212.7,0.002]
[1767661658682,4.01244443,3213.6,3212.7,0.002]
[1767661659021,0.90066948,3213.5,3212.7,0.002]
[1767661659227,1.71566948,3213.4,3212.7,0.002]
[1767661659457,0.90066948,3213.3,3212.7,0.002]
[1767661659757,0.89866949,3213.3,3212.7,0.002]
[1767661661635,0.816,3213.4,3212.7,0.92763175]
[1767661663735,3.92797701,3213.4,3212.7,0.92763175]
[1767661664034,4.82864649,3213.4,3212.7,0.92763175]
[1767661664239,0.90066948,3213.3,3212.4,0.92763175]
[1767661664664,4.01283181,3213.2,3212.4,0.92763175]
[1767661664876,4.01283181,3213.2,3212.1,0.002]
[1767661664877,0.90066948,3213.1,3212.1,0.002]
[1767661665105,0.90066948,3213.0,3212.1,0.002]
[1767661665376,0.90066948,3212.8,3211.8,0.002]
[1767661666772,0.90066948,3212.7,3211.8,0.002]
[1767661666982,0.90066948,3212.7,3211.8,0.33835239]
[1767661667276,0.90066948,3212.7,3211.8,0.002]
[1767661669462,0.815,3212.6,3211.8,0.25289657]
[1767661670752,0.90066948,3212.7,3211.8,0.25289657]
[1767661670952,0.001,3213.4,3211.8,0.25289657]
[1767661671179,0.001,3213.4,3212.0,0.08671147]
[1767661671383,0.001,3213.4,3212.6,0.32266557]
[1767661674088,0.001,3213.4,3212.7,3.11264668]
[1767661675799,0.001,3213.4,3212.7,0.32249747]
[1767661676114,0.90066948,3213.6,3212.6,6.22548414]
[1767661678088,0.90066948,3213.6,3212.6,6.25643898]
[1767661678298,0.90066948,3213.6,3212.8,3.1125498]
[1767661678608,0.90066948,3213.6,3212.7,3.8197449]
[1767661679485,6.411,3214.3,3212.8,0.95936991]
[1767661679486,0.001,3214.3,3212.8,0.95936991]
[1767661679686,0.98798041,3214.2,3212.8,0.95936991]
[1767661679892,0.98798041,3214.2,3212.9,2.05981073]
[1767661680094,0.98798041,3214.2,3213.0,1.77436991]
[1767661680268,0.98798041,3214.2,3213.1,6.22451836]
[1767661680597,0.98798041,3214.2,3213.1,7.18388827]
[1767661681112,0.98798041,3214.2,3213.1,4.07162909]
[1767661681400,0.98798041,3214.2,3213.2,0.7998963]
[1767661682404,0.98798041,3214.2,3213.3,3.11206547]
[1767661682709,0.90956222,3214.3,3213.4,0.93172752]
[1767661683204,0.90856222,3214.8,3213.4,0.93172752]
[1767661683408,0.90856222,3214.8,3213.6,0.93172752]
[1767661684211,0.001,3213.9,3213.6,0.93172752]
[1767661684408,0.90856222,3214.5,3213.5,3.82736716]
[1767661684703,0.90856222,3214.5,3213.6,3.11172957]
[1767661685114,0.90856222,3214.9,3213.7,0.93172752]
[1767661685415,0.90856222,3214.7,3213.8,0.93172752]
[1767661686526,0.4834036,3214.8,3213.9,0.93172752]
[1767661686826,1.72356222,3215.0,3213.9,0.93172752]
[1767661687022,0.90856222,3214.9,3213.9,0.93172752]
[1767661689437,0.90856222,3214.9,3213.8,3.11156443]
[1767661690740,0.90856222,3214.9,3213.7,3.6690812]
[1767661691435,0.90856222,3214.9,3213.7,4.60080872]
[1767661691727,0.90856222,3214.8,3213.9,0.93172752]
[1767661693820,0.815,3215.0,3214.0,0.93172752]
[1767661694205,1.72356222,3215.0,3214.0,0.93172752]
[1767661694504,0.90856222,3214.9,3214.0,0.93172752]
[1767661695800,0.002,3214.6,3214.0,0.93172752]
[1767661696210,0.002,3214.6,3214.0,1.38206202]
[1767661696610,0.002,3214.6,3214.0,0.93172752]
[1767661701710,0.002,3214.6,3213.7,0.55740429]
[1767661701711,0.91056222,3214.6,3213.7,0.55740429]
[1767661702019,0.90856222,3214.2,3213.6,0.93172752]
[1767661702225,0.90856222,3214.2,3213.5,0.93172752]
[1767661702407,0.90856222,3214.5,3213.5,0.93172752]
[1767661702609,0.67114686,3214.4,3213.6,0.93172752]
[1767661703004,0.002,3214.6,3213.6,0.93172752]
[1767661705244,0.002,3214.6,3213.8,0.93172752]
[1767661708117,0.002,3214.6,3213.8,4.04522344]
[1767661708437,0.002,3214.6,3214.3,0.93172752]
[1767661708735,0.91056222,3214.9,3213.8,7.15680474]
[1767661708928,0.91056222,3214.9,3213.9,0.79718047]
[1767661709128,0.91056222,3214.9,3213.9,1.72890799]
[1767661709337,0.91056222,3214.9,3214.0,0.93172752]
[1767661709837,0.002,3214.9,3214.0,0.93172752]
[1767661710742,0.002,3214.9,3214.1,0.93172752]
[1767661710945,0.002,3214.9,3214.2,1.33603126]
[1767661711244,0.93736137,3214.8,3214.2,1.33603126]
[1767661711444,0.93736137,3214.8,3214.2,0.93172752]
[1767661714509,5.80290641,3214.9,3214.2,0.93172752]
[1767661715815,0.93736137,3214.8,3214.2,0.93172752]
[1767661716221,0.93736137,3214.8,3213.9,0.815]
[1767661716538,5.80290641,3214.9,3213.8,0.817]
[1767661716539,0.93736137,3214.5,3213.8,0.817]
[1767661716743,0.93736137,3214.5,3213.9,0.17354205]
[1767661717042,0.93736137,3214.7,3214.0,0.9184205]
[1767661718416,6.74026778,3214.9,3214.0,0.9184205]
[1767661718616,0.93736137,3214.8,3214.0,0.9184205]
[1767661719044,6.73826778,3214.6,3214.0,0.9184205]
[1767661720542,6.73826778,3214.6,3214.0,0.42055016]
[1767661720742,6.73826778,3214.6,3213.8,0.9204205]
[1767661720743,5.80090641,3214.3,3213.8,0.9204205]
[1767661721113,5.80090641,3214.3,3213.8,0.002]
[1767661721930,0.93736137,3214.5,3213.8,0.002]
[1767661722959,6.73826778,3214.0,3213.2,3.11210228]
[1767661723170,6.73826778,3214.0,3213.3,3.11205018]
[1767661723456,6.73826778,3214.0,3213.2,0.9184205]
[1767661723457,0.93736137,3214.0,3213.4,3.11187447]
[1767661723634,0.93736137,3214.0,3213.4,4.03029497]
[1767661723834,0.93736137,3214.0,3213.5,0.4030295]
[1767661724359,0.93736137,3214.0,3213.4,0.9184205]
[1767661724548,0.93736137,3214.0,3213.3,3.11200918]
[1767661724724,6.73826778,3214.3,3213.2,0.9184205]
[1767661724920,6.73826778,3214.3,3213.3,0.9184205]
[1767661725253,0.93736137,3214.2,3213.3,0.9184205]
[1767661725424,0.93736137,3214.2,3213.3,1.63269502]
[1767661725753,0.93736137,3214.2,3213.4,0.9184205]
[1767661726753,0.93736137,3214.2,3213.5,4.03029229]
[1767661727266,0.93736137,3214.2,3213.5,0.9184205]
[1767661727438,0.93736137,3214.2,3213.3,4.74467932]
[1767661727638,0.93736137,3214.2,3213.4,3.89761052]
[1767661728699,0.93736137,3214.2,3213.4,4.81603102]
[1767661729258,0.93736137,3214.2,3213.4,7.92799965]
[1767661729552,0.93736137,3214.2,3213.5,0.9184205]
[1767661729958,0.93736137,3214.5,3213.5,0.9184205]
[1767661730154,0.93736137,3214.5,3213.7,0.9184205]
[1767661730653,1.75236137,3214.7,3213.7,0.9184205]
[1767661730858,1.75236137,3214.7,3213.8,0.9184205]
[1767661731234,0.93736137,3214.6,3213.8,0.9184205]
[1767661731644,0.93736137,3214.3,3213.6,0.79279997]
[1767661731865,5.80090641,3214.1,3213.4,4.0303537]
[1767661732044,5.80090641,3214.1,3213.4,3.1119332]
[1767661732045,0.93736137,3214.0,3213.4,3.1119332]
[1767661732361,0.93736137,3214.0,3213.5,3.11184939]
[1767661732743,0.93736137,3214.0,3213.7,0.001]
[1767661733562,5.80090641,3214.4,3213.7,0.31228494]
[1767661733563,0.93736137,3214.3,3213.7,0.31228494]
[1767661735165,5.80090641,3214.1,3213.3,3.92701958]
[1767661735364,0.93440705,3214.3,3213.4,0.91269624]
[1767661735567,0.93440705,3214.3,3213.5,0.91269624]
[1767661736474,0.93440705,3214.7,3213.5,0.91269624]
[1767661736975,0.002,3214.9,3213.7,0.91269624]
[1767661737272,0.002,3214.9,3214.0,0.91269624]
[1767661737474,0.002,3214.9,3214.2,0.91269624]
[1767661739676,0.002,3214.9,3214.4,0.91269624]
[1767661740386,0.002,3214.9,3214.6,0.91269624]
[1767661740548,0.002,3215.3,3214.9,0.91269624]
[1767661740745,0.93640705,3215.3,3214.7,0.67136026]
[1767661741350,0.93640705,3215.3,3214.6,20.741144]
[1767661741658,0.93640705,3215.3,3214.7,3.11071017]
[1767661742351,0.002,3215.3,3214.8,0.96738947]
[1767661742678,0.9869679,3215.2,3214.7,6.22142034]
[1767661743251,0.002,3215.3,3214.8,0.96738947]
[1767661743557,0.002,3215.3,3214.9,2.26636109]
[1767661744547,0.9889679,3215.3,3214.9,1.29897162]
[1767661745378,0.002,3215.3,3215.0,0.96738947]
[1767661747586,0.002,3215.6,3215.0,0.96738947]
[1767661747789,9.51884523,3216.7,3215.1,0.96738947]
[1767661747790,0.9869679,3216.0,3215.1,0.96738947]
[1767661747955,1.16736469,3216.0,3215.1,0.96738947]
[1767661749092,0.9869679,3216.0,3215.2,0.96738947]
[1767661749392,0.9889679,3216.2,3215.2,0.96738947]
[1767661750993,0.9889679,3216.2,3215.4,0.96738947]
[1767661751166,0.002,3216.2,3215.5,0.96738947]
[1767661751570,0.9869679,3216.4,3215.5,0.96738947]
[1767661753061,0.9869679,3216.4,3215.7,0.96738947]
[1767661756470,0.002,3216.1,3215.5,4.07728084]
[1767661756665,0.002,3216.1,3215.6,3.10982665]
[1767661757008,0.002,3216.1,3215.8,0.96738947]
[1767661757204,0.002,3216.1,3215.7,0.40772161]
[1767661758573,0.002,3216.1,3215.7,3.51745995]
[1767661759096,0.002,3216.1,3215.7,0.40772161]
[1767661759395,0.002,3216.1,3215.7,3.51743033]
[1767661759569,0.002,3216.1,3215.8,0.35174303]
[1767661760096,0.9889679,3216.4,3215.8,3.46132534]
[1767661760494,0.9889679,3216.4,3215.8,0.35174303]
[1767661760798,0.9889679,3216.4,3215.6,3.10982559]
[1767661761301,0.9889679,3216.4,3215.7,3.1097347]
[1767661762170,0.9889679,3216.4,3215.5,6.21986499]
[1767661764503,0.9889679,3216.4,3215.5,3.10992875]
[1767661764712,0.9889679,3216.4,3215.4,3.10998574]
[1767661764872,0.9889679,3216.4,3215.5,1.12509857]
[1767661765210,0.002,3216.4,3215.6,0.96738947]
[1767661765700,0.9889679,3216.8,3215.7,0.96738947]
[1767661765900,0.9889679,3216.8,3215.9,0.96738947]
[1767661766105,0.9889679,3216.8,3216.0,1.37509303]
[1767661767189,0.9889679,3216.8,3216.0,0.96738947]
[1767661768908,0.002,3216.5,3216.0,0.96738947]
[1767661769205,0.002,3216.5,3216.0,4.0768412]
[1767661769500,0.002,3216.5,3216.0,0.96738947]
[1767661769703,0.002,3216.5,3215.8,0.96838947]
[1767661769998,0.9889679,3216.5,3215.8,0.001]
[1767661770205,0.9889679,3216.5,3215.9,0.31106848]
[1767661772409,0.9889679,3216.5,3215.8,0.001]
[1767661774109,0.98597496,3216.4,3215.8,0.001]
[1767661778205,0.002,3216.5,3215.9,0.95945296]
[1767661778402,0.002,3216.8,3216.1,0.95945296]
[1767661779010,0.002,3216.8,3216.2,0.95945296]
[1767661779222,0.002,3216.8,3216.2,1.36632514]
[1767661779421,0.98797496,3216.8,3216.2,0.40687218]
[1767661779725,0.002,3216.9,3216.2,0.40687218]
[1767661780018,0.002,3217.1,3216.5,0.95945296]
[1767661780913,0.002,3217.7,3216.9,0.95945296]
[1767661781241,0.98797496,3217.7,3216.9,0.95945296]
[1767661781702,0.98797496,3217.7,3216.6,3.10887272]
[1767661781912,0.98797496,3217.7,3216.7,0.6217824]
[1767661782117,0.98797496,3217.7,3216.1,0.001]
[1767661782302,0.98797496,3217.7,3216.2,3.10918835]
[1767661782692,0.98797496,3217.7,3216.1,0.001]
[1767661783207,0.98597496,3217.5,3216.1,6.2197121]
[1767661783513,0.98597496,3217.4,3216.2,0.95945296]
[1767661786020,0.98597496,3217.4,3216.4,0.95945296]
[1767661787326,1.3953735,3217.4,3216.4,0.95945296]
[1767661789200,0.98597496,3217.3,3216.4,4.06849299]
[1767661789809,0.98597496,3217.3,3216.2,0.814]
[1767661790023,0.98597496,3217.3,3216.2,3.92318828]
[1767661790327,0.98597496,3217.3,3216.3,4.06861485]
[1767661790528,1.43632369,3217.3,3216.4,0.95945296]
[1767661790725,1.43632369,3217.3,3216.5,0.95945296]
[1767661791931,0.002,3217.1,3216.5,0.95945296]
[1767661795100,0.002,3217.1,3216.3,3.10912285]
[1767661795101,0.96403475,3217.1,3216.3,0.96772365]
[1767661795733,0.96403475,3217.1,3216.3,4.0768762]
[1767661795932,0.96403475,3217.1,3216.4,0.96772365]
[1767661796260,0.002,3217.1,3216.4,0.96772365]
[1767661797627,0.96403475,3217.1,3216.4,0.96772365]
[1767661800248,0.002,3217.4,3216.9,0.96772365]
[1767661800426,0.96403475,3218.0,3216.9,0.96772365]
[1767661800427,0.96203475,3217.8,3216.9,0.96772365]
[1767661800611,0.96203475,3217.8,3216.9,1.14589602]
[1767661800933,0.002,3218.0,3216.6,1.78172365]
[1767661800934,0.96403475,3217.7,3216.6,1.78172365]
[1767661801116,0.93428767,3217.6,3216.4,4.01344466]
[1767661801432,0.93428767,3217.6,3216.3,0.814]
[1767661801804,0.002,3217.7,3216.5,0.90439445]
[1767661802004,0.002,3217.7,3216.4,6.21805138]
[1767661802005,0.93628767,3217.7,3216.4,6.21805138]
[1767661802231,0.93628767,3217.7,3216.6,3.10887272]
[1767661802634,0.002,3217.7,3216.7,0.90439445]
[1767661802940,0.93428767,3217.6,3216.6,3.10887272]
[1767661803238,0.93428767,3217.6,3216.6,6.21774544]
[1767661803419,0.93428767,3217.6,3216.6,3.10887272]
[1767661803771,0.93428767,3217.6,3216.7,0.69210272]
[1767661804037,0.93428767,3217.6,3216.6,3.10887272]
[1767661804226,0.93428767,3217.6,3216.7,0.001]
[1767661804429,0.93428767,3217.2,3216.7,0.001]
[1767661804608,0.77796831,3217.2,3216.7,0.001]
[1767661804808,0.002,3217.1,3216.7,0.001]
[1767661805011,0.002,3217.7,3216.7,0.90539445]
[1767661805610,0.93628767,3217.7,3216.7,0.90539445]
[1767661806333,4.44851499,3217.7,3216.7,0.90539445]
[1767661806934,1.34069024,3217.7,3216.7,4.014162]
[1767661807134,1.34069024,3217.7,3216.8,0.90439445]
[1767661807943,0.40640257,3217.7,3216.8,0.90439445]
[1767661808145,0.002,3217.7,3216.8,0.90439445]
[1767661808518,0.93428767,3217.6,3216.7,0.001]
[1767661808718,4.04219739,3217.6,3216.7,0.001]
[1767661808919,0.93428767,3217.5,3216.7,0.001]
[1767661809350,0.93428767,3217.2,3216.7,0.001]
[1767661809646,0.93428767,3217.0,3216.4,3.1090596]
[1767661810023,4.04414418,3217.7,3216.5,0.90439445]
[1767661810217,0.93428767,3217.6,3216.6,0.90439445]
[1767661810838,0.93428767,3217.5,3216.6,0.90439445]
[1767661812134,3.10985505,3217.7,3216.6,0.90439445]
[1767661812341,0.97343474,3217.7,3216.7,0.90439445]
[1767661812850,0.002,3217.7,3216.9,0.90439445]
[1767661815050,0.002,3217.7,3216.9,4.01290498]
[1767661816334,0.93628767,3217.7,3216.7,6.77916052]
[1767661816534,0.93628767,3217.7,3216.7,3.10871252]
[1767661816746,0.93628767,3217.7,3217.0,0.001]
[1767661817053,0.002,3217.4,3217.0,0.001]
[1767661820956,0.93628767,3217.4,3217.0,0.001]
[1767661821132,0.93628767,3217.4,3216.3,0.90439445]
[1767661821133,0.93428767,3217.3,3216.3,0.90439445]
[1767661821333,0.93428767,3217.3,3216.4,0.90439445]
[1767661823244,1.33872818,3217.3,3216.4,0.90439445]
[1767661823957,0.93428767,3217.0,3216.1,4.82870882]
[1767661824258,0.93428767,3217.0,3216.2,0.90439445]
[1767661825755,0.93428767,3217.0,3216.1,3.92431437]
[1767661825756,0.93428767,3217.0,3216.1,0.001]
[1767661825961,0.93428767,3216.7,3216.1,0.001]
[1767661826327,3.10840838,3217.1,3216.1,0.90539445]
[1767661827164,4.04269605,3217.1,3216.1,0.90539445]
[1767661827850,7.15110443,3217.1,3216.1,0.90539445]
[1767661828050,0.93428767,3217.0,3216.1,0.001]
[1767661828358,0.93428767,3216.8,3216.1,0.90539445]
[1767661828561,0.71511044,3216.9,3216.1,0.90539445]
[1767661829356,0.71511044,3216.9,3216.4,0.001]
[1767661830073,0.93628767,3217.0,3216.4,0.90539445]
[1767661830074,0.002,3217.0,3216.4,0.90539445]
[1767661830866,0.93654645,3217.0,3216.4,0.001]
[1767661831074,4.04503965,3217.0,3216.4,0.001]
[1767661831677,0.93654645,3217.0,3216.4,0.001]
[1767661833234,0.002,3217.0,3216.4,0.001]
[1767661833737,0.002,3217.0,3216.4,0.96118796]
[1767661835260,0.002,3217.0,3216.5,0.96018796]
[1767661835661,0.93654645,3217.0,3216.4,0.001]
[1767661839162,0.002,3217.0,3216.5,0.96018796]
[1767661839966,0.002,3217.0,3216.5,4.06909684]
[1767661840340,0.002,3217.0,3216.6,0.96018796]
[1767661840540,0.002,3217.0,3216.6,1.36719764]
[1767661841770,0.002,3217.0,3216.7,0.001]
[1767661842842,0.93654645,3217.0,3216.7,0.001]
[1767661843542,0.002,3217.0,3216.7,0.001]
[1767661845647,0.93013132,3217.3,3216.7,0.001]
[1767661845859,1.41555799,3217.3,3216.7,0.001]
[1767661846258,0.93454645,3217.2,3216.7,0.001]
[1767661846646,0.93454645,3217.1,3216.7,0.001]
[1767661847064,0.93454645,3217.1,3216.4,0.001]
[1767661853685,0.93454645,3217.1,3216.7,0.001]
[1767661854979,3.10824416,3217.3,3216.7,0.001]
[1767661855282,4.04694197,3217.3,3216.7,0.001]
[1767661855655,0.93869781,3217.3,3216.7,0.001]
[1767661856150,0.002,3217.4,3216.7,0.001]
[1767661857186,3.11010273,3217.4,3216.7,0.001]
[1767661857856,0.002,3217.4,3216.7,0.001]
[1767661859160,1.19194437,3217.4,3216.7,0.001]
[1767661860294,1.19194437,3217.4,3216.7,0.92628633]
[1767661860464,4.04880448,3217.4,3216.7,0.92628633]
[1767661860792,4.04880448,3217.4,3216.7,0.001]
[1767661860995,7.15691115,3217.4,3216.7,0.001]
[1767661861560,7.15691115,3217.4,3216.4,0.001]
[1767661861561,0.94571348,3217.0,3216.4,0.001]
[1767661861793,0.94571348,3216.8,3216.4,0.001]
[1767661863064,0.94571348,3217.3,3216.4,0.001]
[1767661863264,0.94571348,3217.2,3216.4,0.001]
[1767661864965,4.05410302,3217.1,3216.4,0.001]
[1767661865167,8.89899433,3217.1,3216.4,0.001]
[1767661865362,8.89899433,3217.1,3215.8,0.99170649]
[1767661865363,0.94571348,3216.7,3215.8,0.99170649]
[1767661865869,0.88989943,3217.0,3215.8,0.99170649]
[1767661865870,0.002,3216.9,3215.8,0.99170649]
[1767661866288,0.002,3216.9,3216.0,0.99070649]
[1767661866877,3.11058279,3216.9,3216.0,0.99070649]
[1767661867089,0.71089969,3216.8,3216.0,0.99070649]
[1767661867297,0.002,3216.9,3216.0,0.99070649]
[1767661868482,0.002,3216.9,3216.1,0.99070649]
[1767661869365,0.002,3216.9,3216.2,0.99070649]
[1767661871399,0.002,3217.2,3216.6,0.99070649]
[1767661873704,0.002,3217.2,3216.4,0.99070649]
[1767661875277,0.002,3217.2,3216.6,0.99070649]
[1767661877407,0.816,3217.7,3216.9,0.99070649]
[1767661877604,0.816,3217.7,3216.9,4.09928767]
[1767661877826,0.94571348,3217.6,3216.9,6.21716397]
[1767661877980,0.94771348,3217.7,3217.0,0.6217164]
[1767661878178,0.002,3218.0,3217.4,0.99070649]
[1767661878873,0.002,3218.4,3217.4,0.99070649]
[1767661879078,0.002,3218.4,3217.1,6.60544351]
[1767661879079,0.002,3218.4,3217.6,0.99070649]
[1767661879602,0.002,3218.4,3217.8,0.99070649]
[1767661879801,0.002,3218.4,3217.7,6.21561984]
[1767661879802,0.002,3218.4,3218.0,0.99070649]
[1767661882281,0.002,3218.6,3218.1,0.99070649]
[1767661883391,0.002,3218.6,3217.7,0.99070649]
[1767661883586,0.002,3218.6,3217.8,3.10766022]
[1767661883788,0.002,3218.6,3217.8,4.09836671]
[1767661883989,0.002,3218.6,3217.9,0.40983667]
[1767661885314,0.002,3218.6,3217.8,0.99070649]
[1767661885694,0.94771348,3218.6,3217.8,0.99070649]
[1767661886019,0.94771348,3218.6,3217.5,0.814]
[1767661886020,0.94571348,3218.4,3217.5,1.80470649]
[1767661887284,0.94571348,3218.4,3217.1,0.99070649]
[1767661887485,0.94571348,3218.4,3217.0,0.70842787]
[1767661887723,6.21407486,3218.5,3217.0,0.08671147]
[1767661887724,0.94571348,3218.2,3217.0,0.08671147]
[1767661888023,0.94571348,3218.0,3216.9,3.10851195]
[1767661888536,0.94571348,3218.0,3216.8,0.90071147]
[1767661888720,0.94571348,3218.0,3216.8,0.814]
[1767661888883,0.94571348,3218.0,3216.8,3.92266982]
[1767661889088,0.94571348,3218.0,3216.9,0.39226698]
[1767661890297,0.94571348,3217.9,3217.8,0.001]
[1767661890612,0.94571348,3217.9,3216.8,3.92266982]
[1767661890804,0.94571348,3217.9,3216.9,3.10854934]
[1767661892202,0.94571348,3217.9,3217.0,0.03108486]
[1767661892516,0.94571348,3217.9,3217.1,0.31396342]
[1767661892711,4.04378532,3218.2,3217.2,0.98544053]
[1767661892914,3.10733643,3218.2,3217.2,0.98544053]
[1767661893114,4.8577343,3218.3,3217.2,0.98544053]
[1767661893588,7.96501971,3218.3,3217.2,0.98544053]
[1767661893789,0.79650197,3218.2,3217.2,0.98544053]
[1767661893988,1.73295086,3218.2,3217.2,0.98544053]
[1767661894588,3.10742363,3218.1,3217.2,0.98544053]
[1767661895500,0.93644889,3218.0,3217.1,0.31396342]
[1767661895687,0.93644889,3218.0,3216.9,0.98544053]
[1767661896091,0.93644889,3218.0,3216.7,1.79944053]
[1767661896524,0.93644889,3217.8,3216.7,0.98544053]
[1767661896888,3.10756851,3218.0,3216.8,0.98544053]
[1767661897089,4.04391227,3218.1,3216.8,0.98544053]
[1767661897326,4.04391227,3218.1,3217.0,0.98544053]
[1767661897509,4.0438736,3218.1,3217.0,0.98544053]
[1767661897721,3.10742471,3218.1,3217.0,0.98544053]
[1767661897935,3.10737159,3218.2,3217.0,0.98544053]
[1767661898944,3.10737159,3218.2,3217.1,0.98544053]
[1767661899147,3.10737159,3218.2,3217.3,0.98544053]
[1767661899312,6.21474318,3218.2,3217.3,0.98544053]
[1767661899511,7.15119207,3218.2,3217.3,0.98544053]
[1767661899841,0.93644889,3218.1,3217.0,1.79944053]
[1767661900723,4.04396908,3218.0,3217.0,1.79944053]
[1767661901039,7.15148927,3218.0,3217.1,0.17994405]
[1767661902055,7.15148927,3218.0,3217.3,0.001]
[1767661902410,0.002,3217.8,3217.3,0.001]
[1767661903644,0.93844889,3217.8,3217.3,0.001]
[1767661905853,0.002,3217.8,3217.3,0.001]
[1767661907058,0.002,3217.8,3217.3,0.98644053]
[1767661908332,0.002,3217.8,3217.4,1.01652152]
[1767661908940,0.002,3217.8,3217.4,0.98544053]
[1767661909251,0.002,3218.1,3217.5,0.98544053]
[1767661909433,0.002,3218.1,3217.7,0.98544053]
[1767661909747,0.002,3218.6,3218.0,0.98544053]
[1767661910526,3.10895072,3218.6,3218.0,0.98544053]
[1767661911250,0.002,3218.6,3218.0,0.98544053]
[1767661913741,0.002,3218.7,3218.2,0.98544053]
[1767661913941,0.93644889,3218.6,3218.0,3.10745787]
[1767661914142,0.93644889,3218.6,3218.1,0.31074579]
[1767661914544,0.002,3218.3,3218.1,0.31074579]
[1767661914742,0.99311339,3218.6,3218.1,0.31074579]
[1767661915142,0.002,3218.6,3218.2,0.90027827]
[1767661915465,4.0974003,3219.3,3218.1,0.31074579]
[1767661915466,0.99111339,3220.0,3218.7,0.90027827]
[1767661915671,0.99111339,3219.8,3218.7,0.90027827]
[1767661915833,1.17172374,3219.7,3218.7,0.90027827]
[1767661917563,4.27769244,3219.7,3218.7,0.90027827]
[1767661918073,7.38366114,3219.7,3218.7,0.90027827]
[1767661918770,4.27769244,3219.7,3218.7,0.90027827]
[1767661920873,0.99111339,3219.6,3218.7,0.90027827]
[1767661921077,0.96255833,3219.5,3218.4,0.9762254]
[1767661921386,4.06834611,3219.8,3218.8,0.9762254]
[1767661921956,0.96255833,3219.8,3218.8,0.9762254]
[1767661922153,4.0683611,3219.8,3218.9,0.9762254]
[1767661922469,0.96255833,3219.8,3218.9,0.9762254]
[1767661922849,4.06837116,3219.8,3218.9,1.38451969]
[1767661923049,4.06837116,3219.8,3218.9,0.9762254]
[1767661923258,0.00099008,3219.9,3218.9,0.9762254]
[1767661923919,0.00099008,3219.9,3219.1,0.9762254]
[1767661924546,0.00099008,3219.9,3219.2,0.9762254]
[1767661926077,0.00099008,3219.9,3219.2,4.0825347]
[1767661926261,0.00099008,3219.9,3219.4,0.9762254]
[1767661926875,4.06575746,3220.4,3219.4,0.9762254]
[1767661927182,7.17097643,3220.4,3219.4,0.9762254]
[1767661927799,0.96255833,3220.3,3219.4,0.9762254]
[1767661928163,4.06793951,3220.3,3219.4,0.9762254]
[1767661928557,3.10538118,3220.3,3219.4,0.9762254]
[1767661928914,0.96255833,3220.5,3219.4,0.9762254]
[1767661929090,3.10500106,3220.7,3219.5,0.9762254]
[1767661929270,3.10500106,3220.7,3219.7,0.9762254]
[1767661929679,0.96255833,3220.8,3219.7,0.9762254]
[1767661930106,4.06738241,3220.8,3219.7,0.9762254]
[1767661930463,7.17220649,3220.8,3219.7,0.9762254]
[1767661930669,4.86600306,3220.8,3219.8,0.9762254]
[1767661931315,0.96255833,3220.8,3219.8,0.9762254]